[Event "SUI-ch Bundesturnier TP-1 2022"]
[Site "Payerne"]
[Date "2022.05.26"]
[Round "2.9"]
[White "Kamber, Bruno"]
[Black "Pellicoro, Fabian"]
[Result "1/2-1/2"]
[ECO "C41"]
[WhiteElo "2225"]
[BlackElo "1899"]
[Annotator "TA"]
[PlyCount "62"]
[EventDate "2022.05.26"]
[EventType "swiss"]
[EventCountry "SUI"]
[SourceTitle "playchess.com"]
[Source "ChessBase"]
[SourceQuality "1"]
[TimeControl "5400+30"]

{[%evp 18,62,31,34,54,14,12,5,29,1,12,7,10,15,22,31,35,14,25,23,36,39,56,39,52,36,80,16,18,13,15,0,0,0,40,0,2,8,105,98,109,91,72,94,127,-144,-142]} 1. e4 {[%emt 0:09:25]} d6 {[%emt 0:00:42]} 2. Nf3 {[%emt 0:00:46]} Nf6 {[%emt 0:01:31]} 3. Nc3 {[%emt 0:00:15]} e5 {[%emt 0:00:57]} 4. d4 {[%emt 0:02:01]} Nbd7 {[%emt 0:01:49]} 5. Bc4 {[%emt 0:00:45]} Be7 {[%emt 0:00:31]} 6. O-O {[%emt 0:00:12]} O-O {[%emt 0:00:18]} 7. a4 {[%emt 0:00:33]} a5 {[%emt 0:01:29]} 8. Re1 {[%emt 0:00:34]} c6 {[%emt 0:02:28] 8...b6 is not played anymore.} 9. h3 {[%emt 0:04:02]} exd4 {[%emt 0:02:45]} 10. Qxd4 {[%emt 0:03:42]} Nb6 {[%emt 0:05:40] C41: Philidor Defence.} 11. Bf1 {[%emt 0:02:26]} d5 {[%emt 0:09:52]} 12. exd5 {[%emt 0:18:24]} Nbxd5 {[%emt 0:05:38] The position is equal.} 13. Nxd5 {[%emt 0:02:19]} (13. Bg5 $5 {[%cal Rc3d5]}) 13... Nxd5 {[%emt 0:01:51] [#]} 14. Qe4 $146 {[%emt 0:01:51] Black must now prevent c4.} ({Predecessor:} 14. c3 Bf5 15. Qd1 Qc7 16. Bd3 Bxd3 17. Qxd3 h6 18. Nd4 Bf6 19. Nf5 Rfe8 20. Bd2 {0-1 (33) Marczuk,A (1931)-Gumularz,S (2267) Suchedniow 2016}) 14... Bf6 {[%emt 0:06:42]} 15. c3 {[%emt 0:05:44]} g6 {[%emt 0:06:06]} 16. Bh6 {[%emt 0:05:38]} Bf5 {[%emt 0:02:10]} 17. Qe2 {[%emt 0:11:11]} Re8 {[%emt 0:02:44]} 18. Qd2 {[%emt 0:00:35]} Qd7 {[%emt 0:02:55]} 19. Nd4 {[%emt 0:06:51]} Rad8 {[%emt 0:04:20]} 20. Bg5 {[%emt 0:04:03]} Bxg5 {[%emt 0:11:07]} 21. Qxg5 {[%emt 0:00:12]} Be6 {[%emt 0:01:28]} 22. Qh6 {[%emt 0:00:47]} ({White should play} 22. Nxe6 $16 Rxe6 23. Rxe6 fxe6 24. Re1) 22... Nf6 {[%emt 0:03:00]} 23. Re5 {[%emt 0:02:09]} Bd5 {[%emt 0:03:39]} 24. Rae1 $40 {[%emt 0:03:47][%cal Od4f5][%mdl 128] White is up to no good.} (24. Nf5 {feels hotter.} Nh5 25. Rae1 Re6 26. R5e3) 24... Rxe5 {[%emt 0:00:33]} 25. Rxe5 {[%emt 0:00:07][%cal Od4f5] aiming for Nf5!} Re8 {[%emt 0:00:14]} 26. Qe3 {[%emt 0:02:48]} (26. Nf5 {keeps more tension.} Nh5 27. Rxe8+ Qxe8 28. Qg5) 26... Rxe5 {[%emt 0:09:11]} 27. Qxe5 {[%emt 0:00:07]} Kg7 {[%emt 0:01:12]} (27... Qd8 $11) 28. c4 $1 $16 {[%emt 0:00:35]} Be4 {[%emt 0:03:27]} 29. f3 {[%emt 0:00:13]} Bb1 {[%emt 0:01:30] [#]} 30. g4 $1 {[%emt 0:00:05] Threatens to win with g5.} Qe8 {[%emt 0:01:09] [#]} 31. f4 {[%emt 0:01:14][%mdl 8192] White is much more active.} (31. Qxe8 $1 $16 Nxe8 32. Nb3) 31... Qxe5 {[%emt 0:02:09] Weighted Error Value: White=0.32/Black=0.19 (very precise)} 1/2-1/2

[Event "SUI-ch Bundesturnier TP-1 2022"]
[Site "Payerne"]
[Date "2022.05.26"]
[Round "2.10"]
[White "Deveci, Sinan"]
[Black "Pomini, Aurelien"]
[Result "0-1"]
[ECO "D28"]
[WhiteElo "1931"]
[BlackElo "2216"]
[Annotator "TA"]
[PlyCount "128"]
[EventDate "2022.05.26"]
[EventType "swiss"]
[EventCountry "SUI"]
[SourceTitle "playchess.com"]
[Source "ChessBase"]
[SourceQuality "1"]
[TimeControl "5400+30"]

{[%evp 16,128,38,31,39,31,45,37,40,20,45,24,1,-51,-11,0,-11,-35,0,-46,-43,-125,-20,-79,-16,-22,-15,-16,-16,-24,0,0,0,0,103,100,146,0,0,0,0,0,0,-34,-34,-34,-34,-36,-16,-17,-15,-15,-10,-52,-52,-133,-138,-385,-154,-154,-80,-79,-79,-80,-87,-73,-79,-92,-87,-87,-72,-79,-79,-79,-79,-79,-79,-81,-80,-83,-79,-80,-65,-65,-41,-105,-35,-72,-65,-133,-65,-73,-65,-161,-116,-112,-127,-274,-282,-29976,-29975,-29975,-29976,-29975,-29974,-29981,-29982,-29982,-29983,-29983,-29984,-29984,-29984,-29986,-29984]} 1. d4 {[%emt 0:00:05]} d5 {[%emt 0:00:16]} 2. c4 {[%emt 0:00:04]} dxc4 {[%emt 0:00:05]} 3. Nf3 {[%emt 0:00:20]} Nf6 {[%emt 0:00:05]} 4. e3 {[%emt 0:00:06]} e6 {[%emt 0:00:08]} 5. Bxc4 {[%emt 0:00:07]} c5 {[%emt 0:00:04]} 6. Qe2 {[%emt 0:00:28]} a6 {[%emt 0:02:07]} 7. O-O {[%emt 0:00:59]} b5 {[%emt 0:00:24]} 8. Bd3 {[%emt 0:00:16] seems to push 8.Bb3 aside.} Nc6 {[%emt 0:03:41]} 9. a4 {[%emt 0:10:01]} b4 {[%emt 0:06:01][%cal Rc5d4] D28: Queen's Gambit Accepted: Classical main line: 7 Qe2 with early ...Nc6.} 10. dxc5 {[%emt 0:01:17]} Bxc5 {[%emt 0:01:21]} 11. Nbd2 {[%emt 0:05:16]} Bb7 {[%emt 0:03:24] White is slightly better.} 12. Rd1 {[%emt 0:04:07]} Qe7 {[%emt 0:02:48]} 13. Nc4 {[%emt 0:06:36]} O-O {[%emt 0:01:45] [#]} 14. Nce5 $146 {[%emt 0:15:11]} (14. e4 $11) ({Predecessor:} 14. e4 Ng4 15. Be3 Nxe3 16. fxe3 e5 17. a5 Rfd8 18. Rf1 b3 19. Nb6 Bxb6 20. axb6 {0-1 (45) Paal,J-Byrne,R Pittsburgh 1946}) 14... Rfd8 {[%emt 0:05:02]} 15. Nxc6 {[%emt 0:02:03]} Bxc6 {[%emt 0:00:13]} 16. Ne5 {[%emt 0:06:37]} Bb7 {[%emt 0:01:35]} 17. Bd2 {[%emt 0:08:53]} (17. b3 $11) 17... a5 $15 {[%emt 0:08:36]} 18. e4 {[%emt 0:02:07]} (18. Be1 $15) 18... h6 {[%emt 0:13:01]} (18... Qd6 $17 19. Bf4 Bd4) 19. Nc4 {[%emt 0:06:29]} (19. Rac1 $11) 19... e5 {[%emt 0:03:51]} (19... Qc7 $17 {[%cal Od8d3] aiming for ...Rxd3!} 20. h3 Qc6) 20. Be3 $11 {[%emt 0:07:12]} Bd4 {[%emt 0:02:24]} 21. Bxd4 {[%emt 0:03:02]} Rxd4 {[%emt 0:01:05]} 22. f3 {[%emt 0:01:20]} Nd7 {[%emt 0:02:23] Threatens to win with ...Nc5.} 23. Ne3 $1 {[%emt 0:03:11] And now Nf5 would win.} g6 {[%emt 0:03:21] Prevents Nf5.} 24. Bb5 {[%emt 0:00:01]} Rxd1+ {[%emt 0:05:14]} (24... Nc5 $11 {remains equal.}) 25. Rxd1 $16 {[%emt 0:00:09]} Nb6 {[%emt 0:00:34]} (25... Nf8 $142) 26. Nc4 {[%emt 0:05:36]} (26. Qd3 $16) 26... Nxc4 $11 {[%emt 0:03:58]} 27. Bxc4 {[%emt 0:01:13]} Rd8 {[%emt 0:01:40]} 28. Rxd8+ {[%emt 0:06:50]} Qxd8 {[%emt 0:01:06]} 29. Qd3 {[%emt 0:00:01]} Qxd3 {[%emt 0:01:02]} 30. Bxd3 $15 {[%emt 0:00:02][%mdl 4096] Endgame KB-KB} Kf8 {[%emt 0:00:18]} 31. Kf2 {[%emt 0:01:02]} Ke7 {[%emt 0:01:34]} 32. Ke3 {[%emt 0:00:18]} Bc8 {[%emt 0:01:33]} 33. Bc4 {[%emt 0:01:20]} f5 {[%emt 0:00:20]} 34. Kd3 {[%emt 0:03:50]} f4 {[%emt 0:04:49]} 35. b3 {[%emt 0:00:41]} (35. g4 $1 $15) 35... g5 {[%emt 0:02:26]} 36. h3 $2 {[%emt 0:00:30]} (36. Bg8 $17) 36... Kd6 {[%emt 0:01:11]} (36... Kd7 $1 $19 {is more deadly. Strongly threatening ...Kc7.} 37. Ke2 Kd6) 37. Ke2 $17 {[%emt 0:01:07]} Be6 {[%emt 0:03:43]} (37... Kd7 $142) 38. Bxe6 {[%emt 0:00:23]} Kxe6 {[%emt 0:00:04] KP-KP} 39. Kf2 {[%emt 0:00:30]} Kd6 $1 {[%emt 0:00:30]} 40. g4 {[%emt 0:00:26] [#]} fxg3+ $1 {[%emt 0:04:14]} 41. Kxg3 {[%emt 0:00:01] [#]} Kc5 $1 {[%emt 0:00:50]} 42. Kg4 {[%emt 0:00:04]} Kd4 {[%emt 0:00:04]} 43. Kf5 {[%emt 0:00:34]} Kc3 {[%emt 0:00:11]} 44. Kxe5 {[%emt 0:00:01]} Kxb3 {[%emt 0:00:06]} 45. Kf6 {[%emt 0:01:04]} Kxa4 {[%emt 0:01:20]} 46. e5 {[%emt 0:00:09] Black must now prevent e6.} b3 {[%emt 0:00:04]} 47. e6 {[%emt 0:00:02]} b2 {[%emt 0:00:04]} 48. e7 {[%emt 0:00:04]} b1=Q {[%emt 0:00:06]} 49. e8=Q+ $15 {[%emt 0:00:05] KQ-KQ} Qb5 {[%emt 0:00:00]} 50. Qe3 {[%emt 0:01:35]} (50. Qe4+ $15 Kb3 51. Qb1+ Kc4 52. Qc2+ Kd4 53. Qd2+ Kc5 54. Qe3+ Kb4 55. Qe1+ Ka4 56. Qa1+ Kb3 57. Qb1+ Kc4 58. Qc2+ Kd4 59. Qd2+ Kc5 60. Qe3+ Kb4 61. Qe1+ Ka3 62. Qa1+ Kb3 63. Qb1+) 50... Qb3 {[%emt 0:03:30]} (50... Qc6+ $17 51. Kg7 Kb5 52. Qe5+ Kb6 53. Qd4+ Ka6 54. Qd3+ Kb7) 51. Qd4+ {[%emt 0:00:44]} Qb4 {[%emt 0:00:58]} 52. Qa1+ {[%emt 0:00:26]} ({Better is} 52. Qd1+ $15 Kb5 53. Kg6) 52... Kb5 {[%emt 0:00:41] Black is more active.} (52... Kb3 $17 {( -> ...Qc3+)} 53. Kg6 Qd6+ 54. Kh5 a4 55. Qb1+ Kc4 56. Qc2+ Kb5 57. Qb2+ Kc6 58. Qc2+ Kb5 59. Qb2+ Kc6 60. Qc2+ Kb5) 53. Kg6 $1 {[%emt 0:01:17]} a4 {[%emt 0:01:55][%cal Ba5a4,Ba4a3,Ba3a2][%mdl 32]} 54. Qf1+ {[%emt 0:01:03]} (54. Kxh6 $15 a3 55. Qe5+ Ka4 56. Qe6) 54... Ka5 {[%emt 0:00:36]} 55. Kxh6 {[%emt 0:00:10]} a3 {[%emt 0:00:25]} 56. Qc1 {[%emt 0:00:47]} (56. Qd3 $17 {was worth a try.}) 56... a2 $19 {[%emt 0:00:51]} 57. Qa1 $2 {[%emt 0:00:34]} (57. Kh5 $19 Kb6 58. Qe3+ Kb7 59. Qe5 Qh4+ 60. Kg6) 57... Qb1 {[%emt 0:01:19] Black mates.} 58. Qe5+ {[%emt 0:00:27]} Ka4 {[%emt 0:00:25]} 59. Qe8+ {[%emt 0:00:29]} Kb3 {[%emt 0:02:23]} 60. Qf7+ {[%emt 0:00:10]} Kc2 {[%emt 0:00:31]} 61. Qc4+ {[%emt 0:00:38]} Kd2 {[%emt 0:00:14]} 62. Qd5+ {[%emt 0:00:43]} Ke1 {[%emt 0:01:08]} 63. Qa5+ {[%emt 0:00:28]} Kf1 {[%emt 0:00:13]} 64. Qa6+ {[%emt 0:00:11]} Kg1 {[%emt 0:00:46] Weighted Error Value: White=0.31/Black=0.22 (precise)} 0-1

[Event "SUI-ch Bundesturnier TP-1 2022"]
[Site "Payerne"]
[Date "2022.05.27"]
[Round "3.1"]
[White "Bauer, Christian"]
[Black "Kostov, Deyan Samuil"]
[Result "1-0"]
[ECO "D94"]
[WhiteElo "2596"]
[BlackElo "2177"]
[Annotator "TA"]
[PlyCount "81"]
[EventDate "2022.05.26"]
[EventType "swiss"]
[EventCountry "SUI"]
[SourceTitle "playchess.com"]
[Source "ChessBase"]
[SourceQuality "1"]
[TimeControl "5400+30"]

{[%evp 16,81,30,30,35,25,21,26,27,29,47,50,110,77,81,85,85,77,85,72,72,91,86,76,100,94,175,175,175,172,170,173,173,173,167,157,169,167,178,176,224,222,254,238,221,224,422,422,541,550,550,550,549,531,537,536,541,537,536,536,535,531,529,519,29996,29997,29997,29998]} 1. Nf3 {[%emt 0:05:28]} d5 {[%emt 0:00:15]} 2. c4 {[%emt 0:00:18]} c6 {[%emt 0:00:35]} 3. e3 {[%emt 0:00:52]} Nf6 {[%emt 0:01:48]} 4. Nc3 {[%emt 0:00:07]} g6 {[%emt 0:02:36]} 5. d4 {[%emt 0:01:11]} Bg7 {[%emt 0:00:24]} 6. Be2 {[%emt 0:00:53]} O-O {[%emt 0:02:18]} 7. O-O {[%emt 0:00:04]} Nbd7 {[%emt 0:00:14] 7...a6 gains popularity.} 8. cxd5 {[%emt 0:01:41]} cxd5 {[%emt 0:01:33]} 9. Qb3 {[%emt 0:01:11]} e6 {[%emt 0:02:02] D94: Grünfeld: 4 Nf3 Bg7 5 e3.} 10. Rd1 {[%emt 0:05:47]} b6 {[%emt 0:12:16]} 11. Bd2 {[%emt 0:03:08]} Bb7 {[%emt 0:01:40] White has an edge.} 12. Rac1 {[%emt 0:02:31]} a6 {[%emt 0:00:54]} 13. Na4 {[%emt 0:10:49][%cal Od2a5]} Ne4 {[%emt 0:04:29] [#]} ({Better is} 13... Rb8 $14) 14. Ba5 $146 {[%emt 0:05:05][%mdl 512]} ({Predecessor:} 14. Be1 Re8 15. Rc2 Bf8 16. Rdc1 Bd6 17. Bb4 Bb8 18. Nc3 b5 19. Nxe4 dxe4 20. Nd2 Nf6 21. Ba5 Qd6 22. g3 {1-0 (22) Abdalla,L (2248)-Gamarra,R (1904) Florianopolis 2020}) 14... bxa5 {[%emt 0:10:33]} 15. Qxb7 {[%emt 0:01:24]} Rb8 {[%emt 0:02:36]} 16. Qxa6 {[%emt 0:07:20] White is more active.} Nb6 {[%emt 0:04:01][%cal Bd7b6,Bb6a4,Ba4b2][%mdl 32]} 17. Nc5 {[%emt 0:16:52]} Nxc5 {[%emt 0:03:14]} 18. Rxc5 {[%emt 0:01:53]} Na4 {[%emt 0:01:02][%csl LRb2,LRc5]} 19. Rxa5 {[%emt 0:00:06]} Nxb2 {[%emt 0:00:52]} 20. Rb1 {[%emt 0:01:30]} Qb6 {[%emt 0:12:06]} (20... Rb6 $16 21. Qa7 Qb8) 21. Qxb6 $18 {[%emt 0:02:45]} Rxb6 {[%emt 0:00:53]} 22. Rb5 {[%emt 0:05:08]} Rxb5 {[%emt 0:00:07]} 23. Bxb5 {[%emt 0:00:04]} Nc4 {[%emt 0:00:04]} 24. Bxc4 {[%emt 0:00:58]} dxc4 {[%emt 0:00:05][%mdl 4096] Endgame KRB-KRN} 25. Rc1 {[%emt 0:03:19]} Ra8 {[%emt 0:01:10] [#]} 26. Rc2 $1 {[%emt 0:08:07]} (26. Rxc4 Rxa2 27. Rc8+ Bf8 $16) 26... Bf8 {[%emt 0:03:10]} 27. Kf1 {[%emt 0:00:16]} (27. Rxc4 Rxa2 28. g3 h6 $16) 27... Rb8 {[%emt 0:09:37]} (27... c3 $142 28. Rxc3 Rxa2) 28. Ke2 {[%emt 0:03:26]} ({Don't do} 28. Rxc4 $6 Rb1+ 29. Ke2 Rb2+ 30. Kd3 Rxa2 $16) 28... Ba3 {[%emt 0:02:19]} 29. Ne5 {[%emt 0:02:08]} ({Don't take} 29. Rxc4 $6 Rb2+ 30. Kd3 Rxf2 $16) 29... c3 {[%emt 0:02:23]} 30. Rxc3 {[%emt 0:00:00]} Rb2+ $2 {[%emt 0:00:53]} (30... Ra8 31. Rc4 h5) 31. Kf3 {[%emt 0:00:00]} Rxa2 {[%emt 0:01:04]} 32. Rc8+ {[%emt 0:00:00]} Kg7 {[%emt 0:00:03]} 33. Ra8 {[%emt 0:00:00]} Ra1 {[%emt 0:00:16]} 34. Ra7 {[%emt 0:00:02]} Bb2 {[%emt 0:00:13]} 35. Rxf7+ {[%emt 0:00:07]} Kg8 {[%emt 0:00:02]} 36. Rb7 {[%emt 0:00:32]} Bc3 {[%emt 0:00:33]} 37. Rb6 {[%emt 0:01:46]} Ra3 {[%emt 0:01:58]} 38. Rd6 {[%emt 0:00:30]} Kg7 {[%emt 0:00:32]} 39. h4 {[%emt 0:00:26]} Kf6 {[%emt 0:01:06]} (39... Ra8 $18 40. Rxe6 Be1) 40. Rd7 {[%emt 0:00:15][%csl Ge5][%cal Rd7f7]} Bxd4 {[%emt 0:00:31]} 41. Ng4+ {[%emt 0:00:05] Weighted Error Value: White=0.03 (flawless) /Black=0.46} ({Weaker is} 41. Rxd4 Kxe5 42. g4 Ra7 $18) 1-0

[Event "SUI-ch Bundesturnier TP-1 2022"]
[Site "Payerne"]
[Date "2022.05.27"]
[Round "3.2"]
[White "Perreard, Nicolas"]
[Black "Laurent-Paoli, Pierre"]
[Result "0-1"]
[ECO "D85"]
[WhiteElo "2071"]
[BlackElo "2486"]
[Annotator "TA"]
[PlyCount "76"]
[EventDate "2022.05.26"]
[EventType "swiss"]
[EventCountry "SUI"]
[SourceTitle "playchess.com"]
[Source "ChessBase"]
[SourceQuality "1"]
[TimeControl "5400+30"]

{[%evp 11,76,19,36,7,2,0,9,-20,10,16,17,11,13,10,12,8,6,-12,0,-10,-27,-50,-44,-39,-36,-35,7,-60,-60,-60,-61,-61,-15,-61,-61,-89,-84,-91,-97,-104,-69,-80,-69,-280,-289,-291,-281,-291,-290,-280,-281,-276,-267,-281,-318,-310,-294,-513,-488,-658,-634,-674,-672,-892,-883,-785,-778]} 1. d4 {[%emt 0:00:04]} Nf6 {[%emt 0:02:59]} 2. c4 {[%emt 0:00:07]} g6 {[%emt 0:00:43]} 3. Nc3 {[%emt 0:00:10]} d5 {[%emt 0:00:05]} 4. cxd5 {[%emt 0:00:05]} Nxd5 {[%emt 0:00:04]} 5. e4 {[%emt 0:00:07]} Nxc3 {[%emt 0:00:05]} 6. bxc3 {[%emt 0:00:04]} Bg7 {[%emt 0:00:09][%cal Oc7c5]} 7. Bg5 {[%emt 0:00:09] 7.Nf3 is the modern continuation. D85: Exchange Grünfeld: Unusual White 7th moves and lines with 7 Nf3.} c5 {[%emt 0:03:48][%cal Rc5d4]} 8. Rc1 {[%emt 0:00:08]} O-O {[%emt 0:04:04][%cal Rc5d4]} 9. d5 {[%emt 0:00:29] The position is equal.} ({But not} 9. dxc5 Qc7 $11) 9... Qd6 {[%emt 0:00:04]} (9... Qa5 $5 {[%cal Rg7c3]}) 10. Nf3 {[%emt 0:04:45] Inhibits Qe5.} Bg4 {[%emt 0:00:07]} 11. Be2 {[%emt 0:01:25]} Nd7 {[%emt 0:00:42][%cal Bb8d7,Bd7c5,Bc5d3][%mdl 32]} 12. O-O {[%emt 0:02:35]} Bxf3 {[%emt 0:06:03]} (12... f5 {is more complex.} 13. Nh4 Bxe2 14. Qxe2 fxe4 15. Qxe4 Nf6) 13. Bxf3 {[%emt 0:00:25]} b5 {[%emt 0:00:05]} 14. g3 {[%emt 0:09:17]} c4 {[%emt 0:03:31] [#]} 15. Be3 $146 {[%emt 0:03:16]} ({Predecessor:} 15. Qd2 Nc5 16. Rb1 a6 17. Bg2 Na4 18. Rbc1 Qa3 19. e5 Bxe5 20. d6 exd6 21. Bxa8 Rxa8 {0-1 (39) Matveev,V (2368)-Sychev,K (2572) Chess.com INT 2020}) 15... Nc5 {[%emt 0:12:27]} 16. Bd4 {[%emt 0:00:09]} Nd3 {[%emt 0:01:03]} 17. Bxg7 {[%emt 0:00:15]} Kxg7 {[%emt 0:00:11]} 18. Rc2 {[%emt 0:00:11]} Rad8 {[%emt 0:06:00][%cal Ba8d8,Bd8d7,Bd7f7,Bf7f6][%mdl 32]} 19. Be2 {[%emt 0:02:03]} (19. a4 $1 $11) 19... Nc5 $36 {[%emt 0:00:25][%mdl 2048] White is under pressure.} 20. Qd4+ {[%emt 0:00:09]} e5 {[%emt 0:00:49]} 21. Qe3 {[%emt 0:02:00]} f5 {[%emt 0:01:20]} (21... a6 $15) 22. f3 {[%emt 0:00:12]} (22. a4 $1 $11 {is more appropriate.}) 22... a6 {[%emt 0:03:42]} 23. Kg2 {[%emt 0:03:55]} Rd7 {[%emt 0:01:32]} 24. Rcc1 {[%emt 0:07:39][%cal Bc2c1,Bc1b1,Bb1b4][%mdl 32]} Rdf7 {[%emt 0:01:22] Black is more active.} 25. Rb1 {[%emt 0:01:51]} Rf6 {[%emt 0:04:26]} 26. Rb4 {[%emt 0:02:03]} R8f7 {[%emt 0:03:46][%cal Bf8f7,Bf7c7,Bc7c5][%mdl 32]} 27. a4 $2 {[%emt 0:00:49] [#] This costs White the game.} ({White should play} 27. Rbb1 $15) 27... Nxa4 $19 {[%emt 0:01:37]} 28. Bxc4 {[%emt 0:00:33]} Rc7 {[%emt 0:01:10]} 29. Ra1 {[%emt 0:01:53][%cal Oe4f5]} fxe4 {[%emt 0:00:30]} 30. fxe4 {[%emt 0:00:16]} Qc5 {[%emt 0:05:21]} 31. Qxc5 {[%emt 0:02:04]} Rxc5 {[%emt 0:00:15]} 32. Ra3 {[%emt 0:08:35]} a5 {[%emt 0:03:28]} 33. Rbxa4 {[%emt 0:01:08]} bxa4 {[%emt 0:00:06] KRR-KRB} 34. Bd3 {[%emt 0:00:37]} (34. Rxa4 Kf7 35. d6+ Ke8 36. Bd5) 34... Rb6 {[%emt 0:00:12] Threatens to win with ...Rb3. Black is clearly winning.} 35. Be2 {[%emt 0:04:26]} Rb3 {[%emt 0:02:12]} 36. Rxa4 {[%emt 0:00:25]} Rb2 {[%emt 0:00:24]} 37. Kf2 {[%emt 0:02:06]} Rxc3 {[%emt 0:00:04] [#] White must now prevent ...Rcc2.} 38. Rxa5 {[%emt 0:00:47]} Rcc2 {[%emt 0:00:12] Weighted Error Value: White=0.46/Black=0.05 (flawless)} 0-1

[Event "SUI-ch Bundesturnier TP-1 2022"]
[Site "Payerne"]
[Date "2022.05.27"]
[Round "3.3"]
[White "Joie, Sebastien"]
[Black "Naef, Thomas"]
[Result "1-0"]
[ECO "D78"]
[WhiteElo "2376"]
[BlackElo "2110"]
[Annotator "TA"]
[PlyCount "43"]
[EventDate "2022.05.26"]
[EventType "swiss"]
[EventCountry "SUI"]
[SourceTitle "playchess.com"]
[Source "ChessBase"]
[SourceQuality "1"]
[TimeControl "5400+30"]

{[%evp 18,43,31,29,51,47,65,43,43,38,52,51,50,37,50,50,48,42,29,31,35,34,113,113,202,169,164,109]} 1. d4 {[%emt 0:06:16]} d5 {[%emt 0:00:14]} 2. c4 {[%emt 0:00:10]} c6 {[%emt 0:00:12]} 3. Nf3 {[%emt 0:00:04]} Nf6 {[%emt 0:00:15]} 4. Qb3 {[%emt 0:00:48]} dxc4 {[%emt 0:01:11]} 5. Qxc4 {[%emt 0:00:09]} Nbd7 {[%emt 0:01:36]} 6. g3 {[%emt 0:00:56]} Nb6 {[%emt 0:00:18]} 7. Qd3 {[%emt 0:03:29]} g6 {[%emt 0:06:48]} 8. Nc3 {[%emt 0:00:18]} Bg7 {[%emt 0:00:17]} 9. Bg2 {[%emt 0:00:12]} O-O {[%emt 0:07:11]} 10. O-O {[%emt 0:00:13]} a5 {[%emt 0:03:03] D78: Fianchetto Grünfeld: 6 0-0 c6.} 11. Rd1 {[%emt 0:04:52]} a4 {[%emt 0:00:19]} 12. h3 {[%emt 0:00:33] White is more active.} Be6 {[%emt 0:00:35] White is slightly better.} 13. e4 {[%emt 0:00:19]} h6 {[%emt 0:03:47] [#]} 14. g4 $146 {[%emt 0:07:44]} ({Predecessor:} 14. Ne5 Nfd7 15. Ng4 Bxg4 16. hxg4 Nf6 17. g5 hxg5 18. Bxg5 Qd7 19. Qe2 Qe6 20. Bf3 {½-½ (60) Shaydullina,S (2281)-Druzhinina,O Serpukhov 2002}) 14... Qc7 {[%emt 0:03:24]} 15. Ne5 {[%emt 0:03:27]} Nfd7 {[%emt 0:04:37]} 16. Nxd7 {[%emt 0:02:47]} Bxd7 {[%emt 0:00:10]} 17. Be3 {[%emt 0:04:44]} f5 {[%emt 0:05:10]} 18. f3 {[%emt 0:00:40][%cal Bf2f3,Bf3e4,Be4e5][%mdl 32]} fxe4 {[%emt 0:07:15]} 19. fxe4 {[%emt 0:02:56]} Ra6 {[%emt 0:04:03]} (19... Be6 $14) 20. e5 $16 {[%emt 0:01:45][%cal Oe3h6] And now Bxh6! would win.} g5 {[%emt 0:03:26]} (20... Be8 $16 21. Rac1 Qd7) 21. Rf1 {[%emt 0:01:46] Black must now prevent Rxf8+.} Raa8 {[%emt 0:05:08] [#]} 22. Qg6 {[%emt 0:02:40] Weighted Error Value: White=0.07 (flawless) /Black=0.15 (very precise)} (22. Bxg5 $1 $18 {[%mdl 512]} Rxf1+ 23. Rxf1 hxg5 24. Ne4 (24. Qg6 Be8 $15)) 1-0